bitfinex/quotes_BTCUSD_20250330
["timestamp","ask_amount","ask_price","bid_price","bid_amount"]
[1743343204648,0.23106353,82844.0,82843.0,0.0041686]
[1743343205067,0.33259194,82844.0,82843.0,0.0041686]
[1743343205277,0.33457402,82844.0,82843.0,0.0041686]
[1743343206372,0.21899353,82844.0,82843.0,0.0041686]
[1743343206577,0.06959373,82844.0,82843.0,0.0041686]
[1743343207012,0.09459353,82844.0,82843.0,0.0041686]
[1743343207218,0.10666353,82844.0,82843.0,0.0041686]
[1743343207418,0.06959373,82844.0,82843.0,0.0041686]
[1743343207597,0.03367566,82844.0,82843.0,0.0041686]
[1743343208294,0.03367566,82844.0,82843.0,0.01870945]
[1743343208946,0.05867546,82844.0,82843.0,0.01870945]
[1743343209153,0.03367566,82844.0,82843.0,0.01870945]
[1743343210238,0.03013713,82844.0,82843.0,0.01870945]
[1743343211120,0.06720693,82844.0,82843.0,0.01870945]
[1743343213449,0.0896493,82844.0,82843.0,0.01870945]
[1743343213804,0.0525795,82844.0,82843.0,0.01870945]
[1743343214003,0.0525795,82844.0,82843.0,0.03078045]
[1743343214690,0.0525795,82844.0,82843.0,0.01870945]
[1743343215223,0.0896493,82844.0,82843.0,0.01870945]
[1743343216229,0.3310663,82844.0,82843.0,0.01870945]
[1743343216614,0.31215433,82844.0,82843.0,0.01870945]
[1743343217136,0.05866733,82844.0,82843.0,0.01870945]
[1743343217321,0.31215433,82844.0,82843.0,0.01870945]
[1743343218467,0.07073733,82844.0,82843.0,0.01870945]
[1743343218953,0.05866733,82844.0,82843.0,0.01870945]
[1743343219456,0.03366753,82844.0,82843.0,0.01870945]
[1743343219976,0.05866733,82844.0,82843.0,0.01870945]
[1743343220154,0.03366753,82844.0,82843.0,0.03078045]
[1743343220531,0.03366753,82844.0,82843.0,0.15106528]
[1743343220732,0.03366753,82844.0,82843.0,0.49004594]
[1743343220971,0.03366753,82844.0,82843.0,0.48881561]
[1743343221340,0.02244237,82844.0,82843.0,0.48881561]
[1743343221540,0.02244237,82844.0,82843.0,0.48681561]
[1743343221748,0.02244237,82844.0,82843.0,1.01720044]
[1743343221954,0.02244237,82844.0,82843.0,1.02020044]
[1743343222147,0.01891041,82846.0,82845.0,0.01207]
[1743343222349,0.01891041,82846.0,82845.0,0.18464601]
[1743343222573,0.01891041,82846.0,82845.0,0.48464601]
[1743343222748,0.01891041,82846.0,82845.0,0.66206734]
[1743343222933,0.01891041,82846.0,82845.0,0.57528251]
[1743343224550,0.01891041,82846.0,82845.0,0.57728251]
[1743343224823,0.0003372,82850.0,82845.0,0.57728251]
[1743343224824,0.0003372,82850.0,82849.0,0.784973]
[1743343225029,0.75632092,82852.0,82851.0,0.012069]
[1743343225235,0.71679549,82852.0,82851.0,0.72334501]
[1743343225438,0.70628549,82852.0,82851.0,0.84362984]
[1743343225611,0.69204549,82852.0,82851.0,0.84362984]
[1743343225950,0.54865641,82852.0,82851.0,1.21797951]
[1743343226195,0.48817572,82852.0,82851.0,1.21797951]
[1743343226410,0.42164697,82852.0,82851.0,1.21797951]
[1743343226614,0.36116628,82852.0,82851.0,1.21797951]
[1743343226786,0.35511822,82852.0,82851.0,1.21797951]
[1743343227190,0.34907016,82852.0,82851.0,1.24267014]
[1743343227358,0.35007016,82852.0,82851.0,1.24667014]
[1743343228181,0.35007016,82852.0,82851.0,1.25267014]
[1743343233377,0.0189065,82874.0,82873.0,0.012066]
[1743343233616,0.0189065,82874.0,82873.0,1.42117254]
[1743343233866,0.01895352,82874.0,82873.0,1.41994468]
[1743343234514,0.01895352,82874.0,82873.0,1.41894468]
[1743343234721,0.01895352,82874.0,82873.0,1.42294468]
[1743343234866,0.01895352,82874.0,82873.0,1.54322951]
[1743343235064,0.01895352,82874.0,82873.0,1.54222951]
[1743343235480,0.01895352,82874.0,82873.0,1.56997075]
[1743343236152,0.01895352,82874.0,82873.0,1.57921471]
[1743343236428,4.702e-05,82874.0,82873.0,1.57921471]
[1743343237565,4.702e-05,82874.0,82873.0,1.45892988]
[1743343239369,0.00038402,82874.0,82873.0,1.45892988]
[1743343241807,0.00038402,82874.0,82873.0,1.87102988]
[1743343242073,2e-08,82874.0,82873.0,1.95102988]
[1743343242290,0.1249,82902.0,82887.0,0.56789685]
[1743343242495,0.1249,82902.0,82887.0,0.68818168]
[1743343242924,2e-07,82888.0,82887.0,1.25028168]
[1743343243137,0.000337,82922.0,82909.0,0.56782985]
[1743343243331,0.000337,82922.0,82921.0,0.26779285]
[1743343243628,0.000337,82922.0,82921.0,0.38807768]
[1743343244053,0.000337,82922.0,82921.0,0.68807768]
[1743343244263,0.000337,82927.0,82926.0,0.553236]
[1743343244469,0.000337,82927.0,82926.0,0.84506168]
[1743343244668,0.00046247,82927.0,82926.0,0.97831501]
[1743343245313,0.00012547,82929.0,82928.0,0.012058]
[1743343245487,0.00012547,82929.0,82928.0,0.14688368]
[1743343245693,0.0472,82943.0,82932.0,0.553219]
[1743343245846,0.0472,82943.0,82932.0,0.68804468]
[1743343246052,0.0472,82943.0,82932.0,0.78396601]
[1743343246274,0.0003368,82947.0,82932.0,0.78396601]
[1743343247134,0.0003368,82947.0,82932.0,0.78496601]
[1743343248360,0.0003368,82947.0,82932.0,1.19706601]
[1743343248582,0.0003368,82947.0,82932.0,1.19906601]
[1743343249136,0.0003368,82947.0,82932.0,1.10014468]
[1743343249718,0.0003368,82947.0,82932.0,1.10214468]
[1743343250537,0.01888908,82946.0,82932.0,1.10214468]
[1743343251201,0.01888908,82946.0,82932.0,1.10514468]
[1743343251591,0.01888908,82946.0,82932.0,1.25514468]
[1743343252152,0.0003368,82947.0,82932.0,1.25514468]
[1743343252358,4e-07,82935.0,82934.0,0.012057]
[1743343252527,4e-07,82935.0,82934.0,0.44688268]
[1743343253946,4e-07,82935.0,82934.0,0.59688268]
[1743343255372,4e-07,82935.0,82934.0,0.78162218]
[1743343255573,4e-07,82935.0,82934.0,0.78362218]
[1743343255710,4e-07,82935.0,82934.0,0.87954351]
[1743343256563,4e-07,82935.0,82934.0,0.55820266]
[1743343256736,4e-07,82935.0,82934.0,0.15022433]
[1743343257219,0.0370572,82935.0,82934.0,0.006]
[1743343257460,0.1185572,82935.0,82934.0,0.006]
[1743343257696,0.1677572,82935.0,82934.0,0.006]
[1743343257897,0.1677572,82935.0,82908.0,0.73128]
[1743343257898,0.137761,82909.0,82908.0,0.73128]
[1743343258045,0.4039888,82909.0,82908.0,0.57452]
[1743343258247,0.1506998,82909.0,82908.0,0.57452]
[1743343258577,0.1627608,82909.0,82908.0,0.57452]
[1743343259424,0.1627608,82909.0,82908.0,0.57664547]
[1743343260861,0.1627608,82909.0,82908.0,0.57964547]
[1743343260862,0.1677608,82909.0,82908.0,0.57964547]
[1743343261069,0.1677608,82909.0,82908.0,0.00512547]
[1743343261961,0.1677608,82909.0,82908.0,0.00212547]
[1743343262864,0.1677608,82909.0,82908.0,0.00329387]
[1743343263045,0.1677608,82909.0,82908.0,0.00229387]
[1743343263820,0.1677608,82909.0,82908.0,0.00029387]
[1743343263983,0.1506998,82909.0,82908.0,0.00029387]
[1743343264184,0.1627608,82909.0,82908.0,0.00129387]
[1743343264799,0.1506998,82909.0,82908.0,0.00129387]
[1743343265717,0.1627608,82909.0,82908.0,0.00129387]
[1743343269586,0.17077632,82909.0,82908.0,0.00129387]
[1743343269795,0.1677608,82909.0,82908.0,0.00129387]
[1743343270808,0.22567581,82909.0,82908.0,0.00029387]
[1743343271933,0.25463657,82909.0,82908.0,0.00029387]
[1743343272111,0.21499656,82909.0,82908.0,0.00029387]
[1743343272313,0.20293556,82909.0,82908.0,0.25358587]
[1743343272523,0.20293556,82909.0,82908.0,0.00029387]
[1743343273411,0.18066056,82909.0,82908.0,0.00029387]
[1743343273816,0.1516998,82909.0,82908.0,0.00029387]
[1743343274198,0.0751998,82909.0,82908.0,0.22586062]
[1743343274824,0.0259998,82909.0,82908.0,0.22586062]
[1743343275348,0.0249998,82909.0,82908.0,0.22586062]
[1743343275505,0.0249998,82909.0,82908.0,0.22886062]
[1743343275706,0.0249998,82909.0,82908.0,0.23086062]
[1743343275911,0.0249998,82909.0,82908.0,0.15218055]
[1743343276715,0.0744998,82923.0,82922.0,0.012059]
[1743343276947,0.0003368,82930.0,82929.0,0.253228]
[1743343277151,0.0253366,82930.0,82929.0,0.05312745]
[1743343277356,0.0253366,82930.0,82929.0,0.02659885]
[1743343277572,0.0253366,82930.0,82929.0,0.01454085]
[1743343277778,0.252946,82923.0,82922.0,0.12028483]
[1743343277956,0.012059,82922.0,82921.0,0.03839008]
[1743343278191,0.0370588,82922.0,82921.0,0.02384923]
[1743343278614,0.0420588,82922.0,82921.0,0.02384923]
[1743343278844,0.3618648,82917.0,82902.0,0.15664]
[1743343279054,0.4110648,82917.0,82906.0,0.26506973]
[1743343279262,0.3990048,82917.0,82906.0,0.27713073]
[1743343279471,0.3990048,82917.0,82906.0,0.012061]
[1743343279679,0.3990048,82917.0,82902.0,0.15664]
[1743343279680,0.4110648,82917.0,82902.0,0.15664]
[1743343279888,0.4110648,82917.0,82902.0,0.397888]
[1743343280095,0.2782888,82909.0,82902.0,0.25331]
[1743343280301,0.2782888,82909.0,82902.0,0.02112421]
[1743343280501,0.2782888,82909.0,82903.0,0.01454085]
[1743343280711,0.0370608,82909.0,82905.0,0.01454085]
[1743343280859,0.0343608,82909.0,82905.0,0.01454085]
[1743343281062,0.0343608,82909.0,82904.0,0.01454085]
[1743343281451,0.0343608,82909.0,82908.0,0.00329387]
[1743343281792,0.03737635,82909.0,82908.0,0.00329387]
[1743343281994,0.0331608,82909.0,82908.0,0.00329387]
[1743343282193,0.0249998,82909.0,82908.0,0.00329387]
[1743343282372,0.0249998,82909.0,82908.0,0.03361354]
[1743343282755,0.0249998,82909.0,82908.0,0.00529387]
[1743343283405,0.0249998,82909.0,82908.0,0.01983472]
[1743343284425,0.0249998,82909.0,82908.0,0.03189572]
[1743343284633,0.0492,82917.0,82916.0,0.01206]
[1743343284858,0.0249998,82921.0,82920.0,0.26779585]
[1743343285062,0.0249998,82926.0,82924.0,0.253243]
[1743343285235,0.0249998,82926.0,82925.0,0.012059]
[1743343285643,0.0249998,82926.0,82924.0,0.253243]
[1743343285644,0.0249998,82925.0,82924.0,0.01454085]
[1743343286086,0.0249998,82925.0,82924.0,0.01354085]
[1743343286289,0.0249998,82921.0,82916.0,0.241207]
[1743343286436,0.0249998,82920.0,82918.0,0.241202]
[1743343286616,0.0249998,82920.0,82918.0,0.0239851]
[1743343286828,0.0249998,82920.0,82918.0,0.2772461]
[1743343287020,0.0249998,82920.0,82918.0,0.0239851]
[1743343287449,0.01206,82912.0,82902.0,0.02104715]
[1743343287651,0.0249998,82909.0,82908.0,0.02499451]
[1743343287821,0.0249998,82909.0,82908.0,0.00029387]
[1743343288198,0.2782888,82909.0,82908.0,0.00029387]
[1743343288957,0.3583888,82909.0,82908.0,0.00329387]
[1743343289170,0.3583888,82909.0,82908.0,0.00829387]
[1743343289529,0.12754553,82909.0,82908.0,0.00829387]
[1743343290128,0.02244573,82909.0,82908.0,0.03489572]
[1743343290327,0.03366854,82909.0,82908.0,0.03489572]
[1743343290624,0.01122281,82909.0,82908.0,0.03489572]
[1743343290805,0.01122281,82909.0,82908.0,0.03189572]
[1743343291004,0.01122281,82909.0,82908.0,0.03389572]
[1743343291205,0.01122281,82909.0,82908.0,0.02889572]
[1743343291437,0.01122281,82909.0,82908.0,0.53143566]
[1743343291638,0.01122281,82909.0,82908.0,0.45318055]
[1743343291864,0.01122281,82909.0,82908.0,0.90293188]
[1743343292067,0.0253366,82930.0,82929.0,0.02659885]
[1743343292242,0.0003368,82930.0,82929.0,0.02659885]
[1743343292442,0.0003368,82930.0,82929.0,0.14688368]
[1743343292645,0.0003368,82930.0,82929.0,0.45615548]
[1743343293898,0.0003368,82930.0,82929.0,0.49379795]
[1743343294606,0.0003368,82930.0,82929.0,0.49479795]
[1743343294809,0.0003368,82930.0,82929.0,0.49379795]
[1743343295220,0.0003368,82930.0,82929.0,0.45615548]
[1743343295418,0.0003368,82930.0,82929.0,0.57944031]
[1743343295635,0.0003368,82930.0,82929.0,0.58144031]
[1743343295871,0.0003368,82930.0,82929.0,0.57844031]
[1743343296251,0.0003368,82930.0,82929.0,0.58144031]
[1743343297445,0.0003368,82930.0,82929.0,0.60532954]
[1743343298690,0.0003368,82930.0,82929.0,0.48504471]
[1743343304261,0.0003368,82930.0,82929.0,0.89714471]
[1743343304519,4e-07,82935.0,82932.0,0.71775985]
[1743343304771,4e-07,82935.0,82932.0,0.83804468]
[1743343304976,4e-07,82935.0,82932.0,0.87555201]
[1743343305155,4e-07,82935.0,82932.0,0.99583684]
[1743343305356,4e-07,82935.0,82932.0,0.95832951]
[1743343305721,4e-07,82935.0,82932.0,0.96432951]
[1743343306118,4e-07,82935.0,82932.0,0.97032951]
[1743343309904,4e-07,82935.0,82932.0,1.38242951]
[1743343315858,4e-07,82935.0,82932.0,0.54438483]
[1743343316059,0.0787368,82933.0,82932.0,0.54438483]
[1743343316434,0.0907938,82933.0,82932.0,0.4241]
[1743343316635,0.14630831,82933.0,82932.0,0.012]
[1743343316839,0.1682936,82933.0,82932.0,0.012]
[1743343317279,0.1682936,82933.0,82932.0,0.006]
[1743343317514,0.1562366,82933.0,82932.0,0.006]
[1743343317822,0.0249998,82931.0,82930.0,0.0122264]
[1743343318119,0.0249998,82931.0,82930.0,0.02676725]
[1743343318643,0.0249998,82931.0,82930.0,0.10753825]
[1743343318844,0.1262368,82933.0,82932.0,0.02659885]
[1743343319042,0.1262368,82933.0,82932.0,0.14688368]
[1743343320310,0.0478368,82933.0,82932.0,0.44688368]
[1743343320529,0.0003368,82933.0,82932.0,0.44688368]
[1743343320932,0.0003368,82933.0,82932.0,0.45388368]
[1743343321159,0.0003368,82933.0,82932.0,0.57416851]
[1743343322175,0.0003368,82933.0,82932.0,0.45388368]
[1743343324350,0.0373936,82933.0,82932.0,0.007]
[1743343324577,0.0303366,82933.0,82932.0,0.007]
[1743343325279,0.1207936,82933.0,82932.0,0.004]
[1743343325409,0.0370578,82931.0,82930.0,0.01470925]
[1743343325656,0.1679578,82931.0,82930.0,0.0001684]
[1743343326093,0.17097285,82931.0,82930.0,0.0001684]
[1743343326317,0.17097285,82931.0,82924.0,0.02405743]
[1743343326318,0.4091398,82925.0,82924.0,0.0001684]
[1743343326723,0.52942463,82925.0,82924.0,0.0001684]
[1743343326968,0.54062138,82925.0,82924.0,0.0001684]
[1743343327138,0.54062138,82925.0,82908.0,0.00029387]
[1743343327139,0.2832888,82909.0,82908.0,0.00029387]
[1743343327512,0.4091888,82909.0,82908.0,0.00029387]
[1743343327883,0.52947363,82909.0,82908.0,0.00029387]
[1743343328109,0.4092128,82901.0,82900.0,0.10845901]
[1743343328249,0.52949763,82901.0,82900.0,0.10845901]
[1743343328649,0.384277,82880.0,82879.0,0.57412]
[1743343328848,0.1558998,82880.0,82879.0,0.57426176]
[1743343329394,0.1679648,82880.0,82879.0,0.57426176]
[1743343329929,0.1558998,82880.0,82879.0,0.57426176]
[1743343330265,0.1679648,82880.0,82879.0,0.57426176]
[1743343330648,0.1679648,82880.0,82879.0,0.00514176]
[1743343331186,0.1558998,82880.0,82879.0,0.00514176]
[1743343331510,0.1558998,82880.0,82879.0,0.00014176]
[1743343331719,0.1558998,82880.0,82879.0,0.00614176]
[1743343331895,0.1558998,82880.0,82879.0,0.00714176]
[1743343332093,0.1558998,82880.0,82879.0,0.00114176]
[1743343332473,0.1558998,82880.0,82879.0,0.00414176]
[1743343332829,0.1679648,82880.0,82879.0,0.00414176]
[1743343333049,0.1558998,82880.0,82879.0,0.00414176]
[1743343333221,0.1558998,82880.0,82879.0,0.00314176]
[1743343333440,0.1558998,82880.0,82879.0,0.00514176]
[1743343334534,0.1679648,82880.0,82879.0,0.00514176]
[1743343335177,0.17098161,82880.0,82879.0,0.00514176]
[1743343335501,0.1679648,82880.0,82879.0,0.00214176]
[1743343335706,0.1679648,82880.0,82879.0,0.00414176]
[1743343336428,0.1679648,82880.0,82879.0,0.00231016]
[1743343336545,0.017068,82859.0,82858.0,0.57213796]
[1743343336748,0.017068,82859.0,82858.0,0.57218498]
[1743343337367,0.258441,82859.0,82858.0,0.57218498]
[1743343337590,0.258441,82859.0,82858.0,0.87032472]
[1743343337789,0.258441,82859.0,82858.0,4.702e-05]
[1743343337987,0.49127178,82859.0,82858.0,4.702e-05]
[1743343338409,0.49127178,82859.0,82858.0,0.00604702]
[1743343338999,0.4122408,82859.0,82858.0,0.00604702]
[1743343340009,0.1708678,82859.0,82858.0,0.00740122]
[1743343340217,0.1708678,82859.0,82858.0,0.004]
[1743343340564,0.1708678,82859.0,82858.0,0.008]
[1743343341759,0.1708678,82859.0,82858.0,0.00779208]
[1743343341925,0.23864158,82859.0,82858.0,0.00779208]
[1743343342133,0.23864158,82859.0,82858.0,0.00379208]
[1743343342331,0.23864158,82859.0,82851.0,0.0041685]
[1743343342532,0.2784628,82852.0,82851.0,0.00431031]
[1743343343302,0.2784628,82852.0,82851.0,0.25777631]
[1743343343303,0.005,82852.0,82851.0,0.25777631]
[1743343343499,0.0299998,82852.0,82851.0,0.00431031]
[1743343344127,0.0299998,82852.0,82851.0,0.00631031]
[1743343344341,0.0299998,82852.0,82851.0,0.00831031]
[1743343349020,0.06196558,82852.0,82851.0,0.00831031]
[1743343349177,0.07403458,82852.0,82851.0,0.00831031]
[1743343349442,0.0249998,82852.0,82851.0,0.02285116]
[1743343349648,0.0249998,82852.0,82851.0,0.15520499]
[1743343349880,0.0249998,82852.0,82851.0,0.14313599]
[1743343350750,0.0249998,82852.0,82851.0,0.02285116]
[1743343350981,0.0249998,82852.0,82851.0,0.00831031]
[1743343351155,0.10329396,82852.0,82851.0,0.00831031]
[1743343351338,0.04718948,82852.0,82851.0,0.00831031]
[1743343352692,0.0249998,82852.0,82851.0,0.00831031]
[1743343352891,0.0370688,82852.0,82851.0,0.00831031]
[1743343353273,0.0420688,82852.0,82851.0,0.00831031]
[1743343353492,0.0299998,82852.0,82851.0,0.00831031]
[1743343354114,0.06561267,82852.0,82851.0,0.00831031]
[1743343355215,0.07768167,82852.0,82851.0,0.00831031]
[1743343355358,0.0999655,82852.0,82851.0,0.00831031]
[1743343356013,0.3413595,82852.0,82851.0,0.00831031]
[1743343356322,0.352516,82852.0,82851.0,0.00831031]
[1743343357756,0.37039116,82852.0,82851.0,0.00831031]
[1743343358256,0.11192816,82852.0,82851.0,0.02285116]
[1743343358460,0.08692836,82852.0,82851.0,0.02285116]
[1743343359513,0.11192816,82852.0,82851.0,0.02285116]
[1743343360002,0.12399716,82852.0,82851.0,0.02285116]
[1743343360188,0.11192816,82852.0,82851.0,0.02285116]
[1743343360754,0.12399716,82852.0,82851.0,0.02285116]
[1743343361165,0.08692836,82852.0,82851.0,0.14313599]
[1743343362375,0.11192816,82852.0,82851.0,0.14313599]
[1743343362581,0.12399716,82852.0,82851.0,0.02285116]
[1743343363113,0.106122,82852.0,82851.0,0.02285116]
[1743343363459,0.094053,82852.0,82851.0,0.02285116]
[1743343365573,0.0690532,82852.0,82851.0,0.02285116]
[1743343365778,0.0690532,82852.0,82851.0,0.49594474]
[1743343365987,0.0690532,82852.0,82851.0,0.53361298]
[1743343366533,0.0690532,82852.0,82851.0,0.51477023]
[1743343366728,0.03344033,82852.0,82851.0,0.51477023]
[1743343367030,0.03344033,82852.0,82851.0,0.51277023]
[1743343367201,0.03344033,82852.0,82851.0,0.51777023]
[1743343367427,0.02228383,82852.0,82851.0,0.51777023]
[1743343367624,0.02228383,82852.0,82851.0,0.51277023]
[1743343368063,0.000337,82858.0,82852.0,0.01454085]
[1743343368277,0.000337,82858.0,82854.0,0.01454085]
[1743343368488,0.000337,82858.0,82856.0,0.01454085]
[1743343368639,0.000337,82858.0,82857.0,0.13482568]
[1743343368841,0.000337,82858.0,82857.0,0.17249392]
[1743343369840,0.000337,82858.0,82857.0,0.94813884]
[1743343370040,0.005,82889.0,82878.0,0.253383]
[1743343370242,0.005,82889.0,82879.0,0.13482568]
[1743343371136,0.0249998,82885.0,82879.0,0.13482568]
[1743343371352,0.0249998,82896.0,82879.0,0.18578867]
[1743343371507,0.0249998,82890.0,82879.0,0.18456094]
[1743343371709,0.01153802,82880.0,82879.0,0.18556094]
[1743343372293,0.01153802,82880.0,82879.0,0.18456094]
[1743343372503,0.01153802,82880.0,82879.0,0.18430832]
[1743343372703,0.000337,82880.0,82879.0,0.18430832]
[1743343373323,0.000337,82880.0,82879.0,0.21006812]
[1743343373539,0.000337,82880.0,82879.0,0.50806812]
[1743343373719,0.000337,82880.0,82879.0,0.51006812]
[1743343373851,0.000337,82880.0,82879.0,0.51206812]
[1743343374447,0.000337,82880.0,82879.0,0.48145473]
[1743343374673,0.000337,82880.0,82879.0,0.48445473]
[1743343377949,0.000337,82880.0,82879.0,0.60473956]
[1743343378138,0.000337,82880.0,82879.0,0.48445473]
[1743343380677,0.000337,82880.0,82879.0,0.45784888]
[1743343380889,0.064302,82880.0,82879.0,0.005]
[1743343381093,0.0893018,82880.0,82879.0,0.005]
[1743343381874,0.0893018,82880.0,82879.0,0.002]
[1743343382094,0.0772368,82880.0,82879.0,0.002]
[1743343382235,0.0772368,82880.0,82879.0,0.003]
[1743343382661,0.0772368,82880.0,82879.0,0.001]
[1743343383039,0.0772368,82880.0,82879.0,0.002]
[1743343383241,0.0893018,82880.0,82879.0,0.002]
[1743343383630,0.0893018,82880.0,82879.0,0.001]
[1743343383825,0.0893018,82880.0,82879.0,0.003]
[1743343384078,0.26140584,82880.0,82879.0,0.003]
[1743343384279,0.25838918,82880.0,82879.0,0.003]
[1743343385103,0.25838918,82880.0,82879.0,0.001]
[1743343385871,0.25838918,82880.0,82861.0,0.02455702]
[1743343385872,0.012067,82868.0,82861.0,0.02455702]
[1743343386050,0.012067,82867.0,82855.0,0.01454085]
[1743343386251,0.0249998,82862.0,82860.0,0.02461506]
[1743343387789,0.0249998,82862.0,82860.0,0.02861506]
[1743343388432,0.0249998,82862.0,82861.0,0.17594686]
[1743343388609,0.0249998,82862.0,82861.0,0.13482568]
[1743343389688,0.0249998,82862.0,82861.0,0.13782568]
[1743343390353,0.0249998,82862.0,82861.0,0.14182568]
[1743343393715,0.0249998,82862.0,82861.0,0.15389368]
[1743343394206,0.0249998,82873.0,82869.0,0.01454085]
[1743343394364,0.005,82875.0,82869.0,0.01454085]
[1743343394365,0.0249998,82874.0,82869.0,0.13482568]
[1743343396272,0.0249998,82874.0,82861.0,0.012068]
[1743343396273,0.012068,82862.0,82861.0,0.01470935]
[1743343396456,0.012068,82862.0,82861.0,0.0001685]
[1743343397067,0.0420678,82862.0,82861.0,0.0001685]
[1743343397249,0.17348489,82862.0,82861.0,0.0001685]
[1743343397449,0.26565468,82862.0,82861.0,0.0031685]
[1743343397684,0.26263759,82862.0,82861.0,0.0031685]
[1743343398057,0.1704678,82862.0,82861.0,0.0031685]
[1743343398265,0.1533998,82862.0,82861.0,0.0031685]
[1743343398421,0.0778998,82862.0,82861.0,0.0031685]
[1743343398636,0.0899678,82862.0,82861.0,0.0031685]
[1743343399242,0.09298507,82862.0,82861.0,0.0001685]
[1743343399447,0.09298507,82862.0,82861.0,0.0041685]
[1743343399645,0.0899678,82862.0,82861.0,0.0071685]
[1743343400718,0.09298506,82862.0,82861.0,0.0071685]
[1743343400919,0.0899678,82862.0,82861.0,0.0071685]
[1743343402008,0.0899678,82862.0,82861.0,0.0041685]
[1743343402203,0.0899678,82862.0,82861.0,0.0061685]
[1743343402633,0.0899678,82862.0,82861.0,0.0021685]
[1743343402834,0.3313328,82862.0,82861.0,0.02684681]
[1743343403041,0.3313328,82862.0,82861.0,0.02984681]
[1743343403601,0.3313328,82862.0,82861.0,0.0051685]
[1743343403602,0.50248838,82862.0,82861.0,0.0051685]
[1743343405156,0.62277321,82862.0,82861.0,0.0001685]
[1743343406633,0.62377321,82862.0,82861.0,0.0001685]
[1743343407332,0.62277321,82862.0,82861.0,0.0001685]
[1743343407533,0.62377321,82862.0,82861.0,0.0001685]
[1743343410526,0.2784748,82848.0,82847.0,0.0001684]
[1743343410737,0.2784748,82848.0,82847.0,0.00031021]
[1743343412010,0.2784748,82848.0,82847.0,0.00231021]
[1743343412860,0.2784748,82848.0,82847.0,0.00531021]
[1743343414180,0.48698078,82848.0,82847.0,0.00531021]
[1743343414384,0.4078748,82848.0,82847.0,0.00531021]
[1743343415397,0.4078748,82848.0,82847.0,0.00331021]
[1743343415596,0.4078748,82848.0,82847.0,0.00431021]
[1743343415821,0.4078748,82848.0,82847.0,0.00131021]
[1743343416219,0.4078748,82848.0,82847.0,0.00331021]
[1743343417789,0.3284748,82848.0,82847.0,0.00331021]
[1743343418835,0.0249998,82848.0,82847.0,0.00331021]
[1743343419092,0.005663,82849.0,82848.0,0.26801585]
[1743343419302,0.005663,82849.0,82848.0,0.76670068]
[1743343420398,0.005663,82849.0,82848.0,0.76870068]
[1743343420819,0.005663,82849.0,82848.0,0.76670068]
[1743343421525,0.005663,82849.0,82848.0,0.76770068]
[1743343422036,0.005663,82849.0,82848.0,0.89198551]
[1743343422234,0.005663,82849.0,82848.0,0.89598551]
[1743343422437,0.005663,82849.0,82848.0,0.94118551]
[1743343422703,0.000337,82862.0,82861.0,0.64767685]
[1743343422839,0.000337,82862.0,82861.0,0.92376168]
[1743343423022,0.000337,82862.0,82861.0,1.01968301]
[1743343423621,0.000337,82862.0,82861.0,0.43482568]
[1743343423825,0.000337,82862.0,82861.0,0.00885539]
[1743343423826,0.017405,82862.0,82861.0,0.00885539]
[1743343424028,0.0303368,82862.0,82861.0,0.003]
[1743343424479,0.0303368,82862.0,82861.0,0.007]
[1743343424855,0.0303368,82862.0,82861.0,0.003]
[1743343425106,0.0253368,82862.0,82861.0,0.12728483]
[1743343425270,0.0253368,82862.0,82861.0,0.13882568]
[1743343425473,0.0253368,82862.0,82861.0,0.14788431]
[1743343425675,0.0253368,82862.0,82861.0,0.15288431]
[1743343427317,0.0253368,82862.0,82861.0,0.01805863]
[1743343427520,0.0303368,82862.0,82861.0,0.01805863]
[1743343427731,0.0253368,82862.0,82861.0,0.01805863]
[1743343428213,0.0303368,82862.0,82861.0,0.01805863]
[1743343428901,0.0424048,82862.0,82861.0,0.009]
[1743343429100,0.0303368,82862.0,82861.0,0.009]
[1743343431532,0.0253368,82862.0,82861.0,0.009]
[1743343431832,0.0253368,82862.0,82861.0,0.14382568]
[1743343432211,0.0253368,82862.0,82861.0,0.15277476]
[1743343438180,0.0253368,82862.0,82861.0,0.01794908]
[1743343441699,0.0253368,82862.0,82861.0,0.10503062]
[1743343441916,0.000337,82862.0,82861.0,0.2398563]
[1743343442117,0.0253368,82862.0,82861.0,0.2398563]
[1743343442326,0.0253368,82862.0,82861.0,0.15277476]
[1743343443451,0.000337,82862.0,82861.0,0.15277476]
[1743343443647,0.000337,82862.0,82861.0,0.16607225]
[1743343443849,0.000337,82862.0,82861.0,0.46484276]
[1743343444024,0.000337,82862.0,82861.0,0.58512759]
[1743343445032,0.000337,82862.0,82861.0,0.99722759]
[1743343445255,0.000337,82862.0,82861.0,1.03485563]
[1743343446035,0.000337,82862.0,82861.0,1.02985563]
[1743343446467,0.000337,82862.0,82861.0,1.03585563]
[1743343446694,0.000337,82862.0,82861.0,1.11815563]
[1743343447489,0.000337,82862.0,82861.0,1.11415563]
[1743343447968,0.000337,82862.0,82861.0,1.10815563]
[1743343448146,0.000337,82862.0,82861.0,1.11415563]
[1743343448364,0.000337,82862.0,82861.0,1.12015563]
[1743343448699,0.000337,82862.0,82861.0,1.10815563]
[1743343449113,0.000337,82862.0,82861.0,1.12015563]
[1743343449474,1e-06,82862.0,82861.0,1.12015563]
[1743343449678,1e-06,82862.0,82861.0,1.17005563]
[1743343450294,0.000337,82880.0,82878.0,0.780683]
[1743343450496,0.3301,82906.0,82878.0,0.780683]
[1743343450497,0.0768,82906.0,82901.0,0.01454085]
[1743343450696,0.0249998,82908.0,82903.0,0.01454085]
[1743343450925,0.0249998,82908.0,82906.0,0.012061]
[1743343451126,0.0249998,82911.0,82910.0,0.01454085]
[1743343451552,0.0251414,82911.0,82910.0,0.02355029]
[1743343452370,0.0251414,82911.0,82910.0,0.00900944]
[1743343452371,0.0372024,82911.0,82910.0,0.00900944]
[1743343452573,0.0370608,82909.0,82908.0,0.0268753]
[1743343452775,0.005,82904.0,82902.0,0.01454085]
[1743343453288,0.0249998,82906.0,82902.0,0.13015352]
[1743343453914,0.005,82904.0,82902.0,0.13015352]
[1743343454764,0.0249998,82906.0,82904.0,0.01454085]
[1743343454968,0.0249998,82906.0,82905.0,0.13482568]
[1743343456534,0.0249998,82906.0,82905.0,0.13782568]
[1743343456748,0.0249998,82906.0,82905.0,0.14182568]
[1743343457137,0.0249998,82908.0,82906.0,0.01454085]
[1743343457353,0.0249998,82907.0,82906.0,0.13482568]
[1743343457702,0.0249998,82907.0,82906.0,0.19436869]
[1743343458365,0.0249998,82907.0,82906.0,0.19936869]
[1743343458647,0.005,82910.0,82906.0,0.19936869]
[1743343458648,0.0249998,82908.0,82906.0,0.13782568]
[1743343458808,0.0249998,82907.0,82906.0,0.13482568]
[1743343459009,0.0249998,82907.0,82906.0,0.13782568]
[1743343459238,0.0249998,82907.0,82906.0,0.14082568]
[1743343459393,0.0420608,82907.0,82906.0,0.006]